[Event "Pro Chess League 2023"]
[Site "Chess.com"]
[Date "2023.03.02"]
[Round "3"]
[White "Ju, Wenjun"]
[Black "Nakamura, Hikaru"]
[Result "0-1"]
[WhiteElo "2555"]
[BlackElo "2768"]
[ECO "E16"]
[EventDate "2023.??.??"]
[Annotator "rafael"]
[PlyCount "80"]
[Beauty "7628801445900"]
[EventType "schev"]
[EventRounds "3"]
[TimeControl "600+2"]

1.d4 Nf6 2.c4 e6 3.Nf3 Bb4+ 4.Bd2 c5 $5 {[%c_effect c5;square;c5;type;Interesting;persistent;true] This is an interesting variation of the Bogo-Indian Defense, a favorite of the legendary GM Viktor Korchnoi. I played this move many times during my career, but I must admit that my results were not as good as Korchnoi's and Nakamura's, which is not so surprising, to be honest.} 5.Bxb4 cxb4 {It seems strange that Black accepts to keep doubled pawns. After all, isn't this a weakness from a strategic point of view $2 I believe that \"doubled pawns\" is one of the most misunderstood topics in chess, but this philosophical conversation needs to be continued on another occasion. As compensation, the pawn on b4 causes some discomfort in White's position, gaining space and restricting his play on the queenside. It's not surprising that in many cases White plays a2-a3 at some point, voluntarily giving up this so-called strategic advantage.} 6.g3 b6 7.Bg2 Bb7 8.O-O a5 9.Qd3 $5 {[%c_effect d3;square;d3;type;Interesting;persistent;true] A natural plan, intending to bring the knight to d2 and then playing e2-e4.} ( 9.a3 {is the most popular move.} ) 9...O-O 10.Nbd2 d6 11.e4 e5 $1 {[%c_effect e5;square;e5;type;GreatFind;persistent;true] Black needs to fight for the center.} 12.a3 {This move is probably not the most accurate.} ( 12.Rfe1 {was played in a recent and important game.} 12...Re8 13.Rad1 Nbd7 14.a3 bxa3 15.Qxa3 Qc7 {The position is more or less balanced, but White later won in Muradli-Safarli, Baku 2023.} ) ( 12.Ne1 {starts an interesting plan to improve the knight.} 12...Nc6 13.Nc2 Re8 {This was played in Postny-Romanov, Teplice 2018.} ) 12...Na6 13.Rfd1 $6 {[%c_effect d1;square;d1;type;Inaccuracy;persistent;true] I don't like this move. The e4-pawn needs protection, and the rook is more useful on e1.} ( 13.Rfe1 ) 13...Re8 14.d5 $6 {[%c_effect d5;square;d5;type;Inaccuracy;persistent;true] Another concession and now Black has a comfortable game, as the knight gets a dream square on c5.} ( 14.Qe3 ) 14...Nd7 15.a4 $6 {[%c_effect a4;square;a4;type;Inaccuracy;persistent;true] The problem with this move is that it makes Nakamura's life easier, as now he doesn't need to worry about the queenside tension.} ( 15.Bh3 {This is a classical idea, to activate or exchange bishops.} 15...Ndc5 16.Qe3 Bc8 17.Bxc8 Rxc8 18.Nh4 {Black has only a tiny advantage.} ) 15...Ndc5 16.Qe3 Bc8 $1 {[%c_effect c8;square;c8;type;GreatFind;persistent;true] The bishop has done its business and gets ready for a new role, supporting the f7-f5 advance.} 17.b3 f5 $6 {[%c_effect f5;square;f5;type;Inaccuracy;persistent;true] This move is natural, but a little rushed, as it gives White a plan. It would be more accurate to maneuver with moves like Rf8, Ra7, and maybe even f6-Rf7 before advancing.} ( 17...Rf8 ) 18.exf5 Bxf5 19.Ng5 $1 {[%c_effect g5;square;g5;type;GreatFind;persistent;true] Now the knight can jump to e4 or even e6.} 19...h6 20.Nge4 {The most circumspect, but not the only move.} ( 20.Be4 $5 {[%c_effect e4;square;e4;type;Interesting;persistent;true] is a computer move:} 20...Nxe4 21.Ngxe4 Nc5 {with a slight pressure for Black.} ) ( 20.Ne6 {is a human move:} 20...Qf6 21.Ne4 Bxe4 22.Bxe4 Nxe4 23.Qxe4 Nc5 24.Qe3 {Again Black has only a small plus.} ) 20...Rf8 21.Rf1 Ra7 $1 {[%c_effect a7;square;a7;type;GreatFind;persistent;true] I love these rook lifts $1} 22.Rae1 Raf7 23.h4 {A good move, gaining space and preparing the typical plan Kh2-Bh3.} ( 23.f4 {The computer suggests this active move, a brave decision for any human facing Nakamura.} 23...exf4 ( 23...Bxe4 24.Nxe4 exf4 25.gxf4 Nxe4 26.Bxe4 Nc5 27.Bg6 Rxf4 {This looks very good, but the machine is not impressed, claiming a draw after} ( 27...Rf6 28.f5 ) 28.Rxf4 Qg5+ 29.Qg3 Qxf4 30.Qxf4 Rxf4 31.Re8+ Rf8 32.Re3 ) 24.Rxf4 Bg6 {with a slight advantage for Black.} ) 23...Nb7 {Nakamura probably didn't see a meaningful plan for now and started to shuffle the knight a little bit, since the position is closed and he is allowed to maneuver.} 24.Kh2 Nac5 25.Re2 Nd7 26.Bh3 $1 {[%c_effect h3;square;h3;type;GreatFind;persistent;true] Taking the chance to exchange bishops, which improves White's position. On the other hand, this exchange will be responsible for the defeat later on, as it weakens the f3-square, but to criticize this move because of an error that occurs four moves later would be unfair.} 26...Bxh3 27.Kxh3 Nf6 28.Nxf6+ ( 28.f3 {is also possible.} ) 28...Rxf6 29.Kg2 Nc5 30.Ne4 $2 {[%c_effect e4;square;e4;type;Mistake;persistent;true] A blunder, losing immediately.} ( 30.f3 {is a solid move. Everything is protected, and the game is roughly equal.} ) 30...Rf3 $1 {[%c_effect f3;square;f3;type;GreatFind;persistent;true] Nakamura rarely misses tactical chances.} 31.Qxf3 Rxf3 32.Kxf3 Nxb3 {This is the problem. The b3-pawn falls, and it's the base of White's pawn chain, and the next victims are c4 or a4.} 33.Kg2 Qc7 34.Rc2 Nc5 35.Nxc5 Qxc5 36.Rb1 ( 36.Rd1 b3 37.Rcc1 Qb4 $19 ) 36...Qd4 {The queen invades.} 37.Kh2 Qd3 38.Rbb2 Kf7 39.Kg2 Kf6 40.Rc1 Qa3 {The a4-pawn falls, and further resistance is futile.} 0-1

[Event "Pro Chess League 2023"]
[Site "Chess.com"]
[Date "2023.03.03"]
[Round "3"]
[White "Foisor, Sabina Francesca"]
[Black "Ghosh, Diptayan"]
[Result "0-1"]
[WhiteElo "2185"]
[BlackElo "2553"]
[ECO "D05"]
[EventDate "2023.??.??"]
[PlyCount "74"]
[Beauty "7839389064223"]
[EventType "schev"]
[EventRounds "3"]
[TimeControl "600+2"]

1.d4 Nf6 2.Nf3 d5 3.e3 e6 4.Bd3 Be7 5.b3 b6 6.Bb2 Bb7 7.Nbd2 Nbd7 8.O-O O-O 9.Ne5 c5 10.f4 Qc7 11.Qf3 c4 12.Nxd7 Qxd7 13.Be2 c3 14.Bxc3 Rac8 15.Nb1 Ne4 16.Be1 Rxc2 17.Bd3 Rc1 18.Bd2 Rxf1+ 19.Qxf1 Rc8 20.Bxe4 dxe4 21.Nc3 Ba3 22.Rb1 a5 23.Be1 h6 24.h3 Rc6 25.Rd1 Qc8 $1 {[%c_effect c8;square;c8;type;GreatFind;persistent;true] Pressing on the c3-knight, which blocks the black rook from entering the white position down the c-file. Black is happy to give up the e4-pawn to break through with the rook and open the a8-h1 diagonal for his fianchettoed bishop.} 26.Nxe4 Rc2 27.Nd2 Rxa2 28.Bf2 Qc2 29.e4 Bb4 {Every black piece adds to the pressure on White's center, queenside, kingside, and second rank.} 30.Nc4 Qxe4 {The queen and light-squared bishop eye the white kingside with delight.} 31.Nxb6 Qxf4 32.d5 Bd6 {Now the dark-squared bishop joins the black queen's mischievous kingside intentions.} 33.g3 Qf3 34.Rd3 Qe4 35.Re3 Qf5 36.dxe6 fxe6 37.Nc4 Qd5 {The black queen returns to the h1-a8 diagonal, this time with fatal effects for the white king.} ( 37...Qd5 38.Kh2 Rxf2+ 39.Qxf2 Qh1# ) 0-1

[Event "Pro Chess League 2023"]
[Site "Chess.com"]
[Date "2023.03.08"]
[Round "4"]
[White "Supi, Luis Paulo"]
[Black "Lagno, Kateryna"]
[Result "0-1"]
[WhiteElo "2608"]
[BlackElo "2560"]
[ECO "D35"]
[EventDate "2023.??.??"]
[Annotator "rafael"]
[PlyCount "72"]
[Beauty "7908108545618"]
[EventType "schev"]
[EventRounds "3"]
[TimeControl "600+2"]

1.d4 Nf6 2.c4 e6 3.Nc3 d5 4.cxd5 exd5 5.Bg5 Be7 6.e3 O-O 7.Bd3 Re8 8.Nge2 {Developing the knight on e2 was Kasparov's favorite plan in these positions. It can't be too bad.} 8...c6 9.O-O a5 $5 {[%c_effect a5;square;a5;type;Interesting;persistent;true] The Orthodox Defense is Black's most traditional choice against the Queen's Pawn, played by almost all the greatest chess players in history. Naturally, its theory has undergone a great deal of evolution during all these years. Computers are also playing their part in this process: many new plans are being tested, far beyond the traditional Nbd7-f8, which was automatic in this type of position. In this modern version, tested by Lagno in this game and tried earlier by GM Dubov, the knight seeks an alternative route via a6.} 10.Rc1 {It's not clear to me that this is the best square for the rook. If White is going to try the plan with f3-e4, then the rook might be more useful on d1 or e1.} ( 10.Qc2 g6 11.Rad1 Na6 12.a3 Nc7 13.f3 Ne6 14.Bh4 b5 $1 {[%c_effect b5;square;b5;type;GreatFind;persistent;true] The pawn advance on the queenside is an active and interesting attempt for Black. It was played in Bluebaum-Dubov, Wch Blitz Almaty 2022.} ) ( 10.f3 {is a natural and critical move.} 10...h6 11.Bh4 Na6 12.Kh1 {White had a slight advantage in Milikow-Olenik Campa, Terme Catez 2022.} ) 10...Na6 11.h3 Nc7 12.Bf4 {A new move.} ( 12.Qc2 g6 13.Bf4 Ne6 14.Be5 Bd6 15.Bxd6 ( 15.f4 $1 {[%c_effect f4;square;f4;type;GreatFind;persistent;true] is a better attempt.} ) 15...Qxd6 {with an equal position in Rakhmanov-Dubov, Cheboksary 2022.} ) 12...Bd6 13.Na4 Ne6 14.Be5 $5 {[%c_effect e5;square;e5;type;Interesting;persistent;true]} ( 14.Bxd6 Qxd6 15.Nb6 Ra7 {Followed by 16...Qd8 and White has only a tiny advantage.} ) 14...Bxe5 {The critical move, capturing the bishop before White can play f2-f4.} ( 14...g6 $5 {[%c_effect g6;square;g6;type;Interesting;persistent;true] This is a good prophylactic move. If now} 15.f4 {Black can play} 15...Ng7 $1 {[%c_effect g7;square;g7;type;GreatFind;persistent;true] Controlling the advance of the f-pawn.} ) 15.dxe5 Nd7 16.f4 b5 $1 {[%c_effect b5;square;b5;type;GreatFind;persistent;true]} 17.Nac3 Qb6 18.Rf3 ( 18.Qd2 {is also possible.} ) 18...f6 $1 {[%c_effect f6;square;f6;type;GreatFind;persistent;true] Necessary to create counterplay. This is a critical position.} 19.exf6 $6 {[%c_effect f6;square;f6;type;Inaccuracy;persistent;true]} ( 19.Qc2 $1 {[%c_effect c2;square;c2;type;GreatFind;persistent;true] gives White the initiative. The idea is:} 19...Nef8 20.e6 $1 {[%c_effect e6;square;e6;type;GreatFind;persistent;true] Maybe Supi missed this nice and difficult move.} 20...Rxe6 21.Nd4 Re8 22.Bxb5 $1 {[%c_effect b5;square;b5;type;GreatFind;persistent;true]} 22...cxb5 23.Nxd5 Qb8 24.Nc7 {White will regain some material and has a strong attack.} ) 19...Nxf6 20.Kh1 Bb7 {Now the initiative is in Black's hands.} 21.Nd4 $6 {[%c_effect d4;square;d4;type;Inaccuracy;persistent;true]} ( 21.Ng3 ) 21...c5 $6 {[%c_effect c5;square;c5;type;Inaccuracy;persistent;true] A bold sacrifice, but it isn't necessary.} ( 21...Kh8 $1 {[%c_effect h8;square;h8;type;GreatFind;persistent;true] is more accurate, threatening to capture on d4.} ) ( 21...Nxd4 22.exd4 Qxd4 $4 {[%c_effect d4;square;d4;type;Blunder;persistent;true]} 23.Bxh7+ ) 22.Ndxb5 d4 23.Na4 Qd8 24.Rg3 dxe3 ( 24...Ne4 {is not enough.} 25.Bxe4 Bxe4 26.Nxc5 {Black has no compensation for the material deficit.} ) ( 24...Kh8 $5 {[%c_effect h8;square;h8;type;Interesting;persistent;true]} 25.Nxc5 Nxc5 26.Rxc5 Rxe3 27.Rxe3 dxe3 {Black has good compensation for the pawn in this complicated position.} ) 25.Rxe3 $2 {[%c_effect e3;square;e3;type;Mistake;persistent;true] This move loses.} ( 25.Nd6 $1 {[%c_effect d6;square;d6;type;GreatFind;persistent;true] Gives White the advantage.} 25...Qc7 ( 25...Nxf4 $2 {[%c_effect f4;square;f4;type;Mistake;persistent;true]} 26.Bc4+ Bd5 27.Nxe8 Qxe8 28.Qf3 {Black's position collapses.} ) ( 25...Qxd6 $2 {[%c_effect d6;square;d6;type;Mistake;persistent;true]} 26.Bxh7+ ) 26.Nxb7 {There are other promising moves as well.} 26...Qxb7 27.Rxe3 Nxf4 28.Bc4+ Kh8 29.Qf3 Qxf3 30.Rxf3 {with a clear advantage for White in the endgame.} ) 25...Bxg2+ $1 {[%c_effect g2;square;g2;type;GreatFind;persistent;true]} 26.Kxg2 ( 26.Kg1 Nxf4 $19 ) ( 26.Kh2 Nxf4 $19 ) 26...Nxf4+ 27.Kf2 Rxe3 28.Bc4+ ( 28.Kxe3 {There are several ways of winning after this move. The most natural is:} 28...N6d5+ 29.Kf3 Nxd3 30.Qxd3 Qf6+ 31.Kg3 ( 31.Kg2 Nf4+ {wins the queen.} ) 31...Qf4+ 32.Kg2 Ne3+ {with a decisive attack.} ) 28...N6d5 {The rest is simple. Black has a material advantage and a monster attack.} 29.Qg4 Qf6 30.Nac3 Nd3+ 31.Kg2 Qf2+ 32.Kh1 Nxc1 33.Bxd5+ Kh8 34.Bg2 ( 34.Bxa8 Re1+ ) 34...Re1+ 35.Kh2 Qg1+ 36.Kg3 Re3+ 0-1

[Event "Pro Chess League Main Event 2023 Week 1"]
[Site "Chess.com"]
[Date "2023.03.16"]
[Round "4"]
[White "Caruana, Fabiano"]
[Black "Deac, Bogdan Daniel"]
[Result "1-0"]
[WhiteElo "2766"]
[BlackElo "2700"]
[ECO "D40"]
[EventDate "2023.??.??"]
[Annotator "rafael"]
[PlyCount "89"]
[Beauty "7354997278729"]
[EventType "team-tourn"]
[TimeControl "600+2"]

1.c4 Nf6 2.Nc3 c5 3.Nf3 e6 4.e3 d5 5.d4 a6 {This is a popular move to keep the central tension and avoid a possible development of White's bishop on b5.} ( 5...Nc6 ) 6.cxd5 exd5 7.Bd3 {This is only the fourth-most-played move. The bishop normally goes to e2 or even g2 after 7.g3. Capturing on c5 is also a popular choice.} 7...Nc6 8.O-O {Why is bishop development on d3 not so popular $2 Mainly for two reasons: Black can now play c5-c4 and attack the bishop, or else play the Bg4 with an unpleasant pin.} 8...Bg4 ( 8...Be6 9.dxc5 Bxc5 10.b3 O-O 11.Bb2 {This was played in Caruana-Carlsen, Speed Chess Chess.com 2022 (blitz).} ) ( 8...c4 {This move has the clear disadvantage of relieving central tension and giving a free pass so that White can play with e3-e4 soon.} 9.Bc2 ) 9.Be2 {Modern times. White plays Bd3 and returns with the bishop to e2 soon. What's the logic of that $2 Caruana's idea will soon become clear.} 9...Rc8 ( 9...Bd6 10.dxc5 Bxc5 11.Nd4 $1 {[%c_effect d4;square;d4;type;GreatFind;persistent;true] This is the point. It turns out that the bishop on g4 also has its problems because after the exchange on e2, White is happy with the pressure on the isolated pawn. This was played in Ivanisevic-Indjic, Bajina Basta 2022. Now Black should have exchanged bishops.} 11...Bxe2 12.Ncxe2 Nxd4 13.Nxd4 O-O 14.b3 {With maybe a tiny advantage for White, although I don't think the position is dangerous for Black.} ) 10.Ne5 {A new move, again trying to exploit the bishop on g4.} ( 10.h3 Be6 11.Bd3 Bd6 ( 11...c4 {Maybe now is the time for this move.} 12.Bc2 Bb4 ) 12.dxc5 Bxc5 13.Ne2 O-O 14.b3 Ne4 15.Bb2 {With a slight advantage for White in Gukesh-Carlsson, Stavanger 2021.} ) 10...Be6 ( 10...Bxe2 {Of course, exchanging bishops also deserves consideration.} 11.Qxe2 cxd4 12.exd4 Be7 ( 12...Nxd4 {leads to a complicated game after} 13.Qd1 Bc5 14.Bg5 ) 13.Nxc6 Rxc6 {The computer is not impressed with White's position here.} ) 11.Bf3 ( 11.Nxc6 {This capture looks natural because now Black is forced to capture with the rook.} 11...Rxc6 ( 11...bxc6 $2 {[%c_effect c6;square;c6;type;Mistake;persistent;true]} 12.Bxa6 ) 12.dxc5 Bxc5 13.Bf3 O-O {Black has a fine position. The isolated queen's pawn also has its benefits: here Black's pieces enjoy free play.} ) 11...Qc7 ( 11...Bd6 {is more accurate.} 12.Nxc6 bxc6 {with more or less equal play.} ) 12.Nxc6 bxc6 13.Ne2 ( 13.e4 $1 {[%c_effect e4;square;e4;type;GreatFind;persistent;true] is more decisive.} 13...cxd4 14.exd5 cxd5 15.Qxd4 Bd6 16.Qa4+ $1 {[%c_effect a4;square;a4;type;GreatFind;persistent;true]} 16...Qc6 17.Qxc6+ Rxc6 18.Be3 {with a small advantage for White in the endgame.} ) 13...Bd6 14.h3 cxd4 ( 14...c4 $5 {[%c_effect c4;square;c4;type;Interesting;persistent;true] This is usually a positional mistake because White can break the pawn structure with b2-b3, but here matters are not so clear.} 15.b3 g5 $1 {[%c_effect g5;square;g5;type;GreatFind;persistent;true] Surprisingly Black starts an attack on the kingside, and for this reason the move c5-c4 is useful, closing the center. The position becomes very sharp. If White plays} 16.bxc4 $6 {[%c_effect c4;square;c4;type;Inaccuracy;persistent;true] the attack is very strong after} 16...h5 ) 15.exd4 ( 15.Nxd4 {is a natural recapture.} 15...Bd7 {with an equal position.} ( 15...c5 16.Nxe6 fxe6 17.e4 $5 {[%c_effect e4;square;e4;type;Interesting;persistent;true]} 17...dxe4 18.Be2 {with excellent compensation for the pawn, due to the damaged pawn structure.} ) ) 15...O-O 16.Qd3 Qb7 {The computer is not worried about the a6-pawn and suggests sacrificing it.} ( 16...Rce8 $5 {[%c_effect e8;square;e8;type;Interesting;persistent;true]} 17.Qxa6 Ne4 {with excellent compensation. Maybe Black will follow up with f7-f5 and even g7-g5 in the future.} ) 17.Bf4 $1 {[%c_effect f4;square;f4;type;GreatFind;persistent;true]} 17...Be7 18.b3 Qb5 19.Qe3 Rfe8 20.Nc3 Qa5 21.Na4 {A useful square for the knight, avoiding the c7-c5 break. They say, \"A knight on the rim is dim,\" but every rule has an exception.} 21...Bf5 22.Qc1 Nd7 ( 22...Ne4 {is more active and looks fine.} ) 23.Re1 Bf6 24.Rxe8+ Rxe8 25.Be3 {Caruana keeps trying to control the c5-break, but it comes anyway.} 25...c5 $1 {[%c_effect c5;square;c5;type;GreatFind;persistent;true]} ( 25...Re6 {is also possible, avoiding any complications, but the move played in the game is objectively fine.} ) 26.Nxc5 $1 {[%c_effect c5;square;c5;type;GreatFind;persistent;true] An excellent exchange sacrifice.} 26...Nxc5 27.dxc5 Bxa1 28.Qxa1 {As compensation for the exchange, White has a dangerous pawn on c5 and the dark-squared bishop. If he manages to consolidate the position, then Black is in danger.} 28...Be4 29.Bg4 Qb5 ( 29...d4 $5 {[%c_effect d4;square;d4;type;Interesting;persistent;true] A computer move that starts an interesting counterplay.} 30.Qxd4 ( 30.Bxd4 Bg6 {is dangerous for White, as the rook invasion on e1 can't be stopped easily, for instance:} 31.Be3 $6 {[%c_effect e3;square;e3;type;Inaccuracy;persistent;true]} 31...f5 $1 {[%c_effect f5;square;f5;type;GreatFind;persistent;true]} 32.Bf3 f4 $1 {[%c_effect f4;square;f4;type;GreatFind;persistent;true]} ) 30...Qe1+ 31.Kh2 Qf1 32.f3 Bc6 {According to the computer, Black has enough counterplay to equalize. A strange variation and a difficult assessment for a human.} ) 30.Qc3 ( 30.Qd4 ) 30...Qc6 31.Bd4 f6 $6 {[%c_effect f6;square;f6;type;Inaccuracy;persistent;true] Now the position becomes dangerous for Black.} ( 31...Qg6 $1 {[%c_effect g6;square;g6;type;GreatFind;persistent;true] is better.} 32.Qg3 {Necessary in order to protect g2.} 32...f5 33.Be2 Qxg3 34.fxg3 Re6 35.Kf2 Bb1 36.a3 Bc2 37.b4 Kf7 {with a balanced endgame.} ) 32.a4 Bg6 33.b4 h5 $6 {[%c_effect h5;square;h5;type;Inaccuracy;persistent;true]} ( 33...Qxa4 $6 {[%c_effect a4;square;a4;type;Inaccuracy;persistent;true]} 34.c6 ) ( 33...Re7 {is better, although White has easier play after} 34.Bd1 ) 34.Bd1 Bf7 35.Bc2 {White has managed to stabilize his position and has a comfortable advantage.} 35...Qe6 $2 {[%c_effect e6;square;e6;type;Mistake;persistent;true] This move allows a fatal advance of the white pawns on the queenside.} ( 35...Kf8 ) 36.b5 axb5 37.axb5 Qe1+ 38.Qxe1 Rxe1+ 39.Kh2 Be8 40.c6 {The pawns are unstoppable.} 40...Rc1 41.Bb3 Kf7 42.Bxd5+ Ke7 43.Be3 ( 43.b6 $1 {[%c_effect b6;square;b6;type;GreatFind;persistent;true] is also good.} 43...Kd8 ( 43...Rxc6 44.b7 ) ( 43...Bxc6 44.Bxc6 Rxc6 45.b7 ) 44.b7 Kc7 45.Ba7 Rb1 46.Kg3 {Black is paralyzed.} ) 43...Rc3 ( 43...Kd6 {is the best chance, although the endgame with opposite-colored bishops is winning for White.} 44.Bxc1 Kxd5 45.Ba3 Kc4 46.Bf8 $1 {[%c_effect f8;square;f8;type;GreatFind;persistent;true]} 46...g6 ( 46...Kxb5 47.c7 Bd7 48.Bxg7 Kb6 49.Bxf6 Kxc7 50.Kg3 Kd6 51.Kh4 Be8 52.Kg5 Ke6 53.Bc3 {Followed by the advance of the pawns.} ) 47.Be7 Kxb5 ( 47...f5 {White wins in nice fashion:} 48.Kg3 Kxb5 49.c7 Bd7 50.Kf4 Kc6 51.Bd8 Kb7 52.Kg5 Be8 53.f3 Kc8 54.h4 Kd7 55.Kf6 {Black is in zugzwang.} 55...Kc8 56.Ke7 Bb5 57.Kf7 Bf1 58.Kxg6 Bxg2 59.f4 {And White wins.} ) 48.c7 Bd7 49.Bxf6 {with an easily winning endgame.} ) 44.b6 $1 {[%c_effect b6;square;b6;type;GreatFind;persistent;true]} 44...Rxc6 45.b7 1-0